{"text_format":"3","workbook":"xlsx","n_sheets":4,"sheets":["SĀKUMS","PROJEKTA PARAMETRI","INFORMĀCIJA PAR PROJEKTU","PROJEKTA KOPSUMMAS"],"not_rendered":{"charts":2,"defined_names":3,"pivot_tables":1},"read":"whole","date_system":"1900"}

{"sheet":"SĀKUMS","index":0,"n_rows":7,"n_cols":2,"rows_kept":7}
[null,"PAR ŠO VEIDNI"]
[null,"Izmantojiet šo pasākumu plānošanas žurnāla darbgrāmatu, lai sekotu līdzi projekta parametri, detalizētai informācija par projektu un projekta kopsummas."]
[null,"Ievadiet informāciju darblapā Projekta parametri, lai atjauninātu stabiņu diagrammu, un darblapā Detalizēta informācija par projektu. Rakurstabula projekta kopsummu darblapā tiek automātiski atjaunināta."]
[null,"Ievadiet uzņēmuma nosaukums darblapā Parametri un tas tiks automātiski atjaunināts citās darblapās."]
[null,"Piezīme.  "]
[null,"Papildu norādījumi ir sniegti kolonnā A katrā darbgrāmatas PASĀKUMA PLĀNOŠANAS ŽURNĀLS darblapā. Šis teksts ir paslēpts ar nolūku. Lai tekstu noņemtu, atlasiet kolonnu A, pēc tam atlasiet DZĒST. Lai parādītu slēpto tekstu, atlasiet kolonnu A, pēc tam nomainiet fonta krāsu."]
[null,"Lai iegūtu papildinformāciju par tabulām darblapās, nospiediet taustiņu SHIFT un pēc tam F10 tabulā, atlasiet opciju TABULA un pēc tam atlasiet ALTERNATĪVAIS TEKSTS."]

{"sheet":"PROJEKTA PARAMETRI","index":1,"n_rows":24,"n_cols":9,"rows_kept":24,"merged":[[23,1,42,3]]}
["Šajā darblapā izveidojiet projekta parametri. Šūnā pa labi ievadiet uzņēmuma nosaukums. Šīs kolonnas šūnās ir noderīgi norādījumi. Bultiņa uz leju, lai sāktu darbu.","Uzņēmuma nosaukums"]
["Šīs darblapas nosaukums ir šūnā pa labi.","Pasākuma vadības projekta žurnāls"]
["Konfidencialitātes ziņojums ir šūnā pa labi.",{"$f":"B1&\" , konfidenciāli\"","v":"Uzņēmuma nosaukums , konfidenciāli"}]
["Šūnā pa labi ir padoms.","Ieēnotās šūnas ir aprēķinātas jūsu vietā. Nav nepieciešams tajās neko ievadīt."]
["Ievadiet detalizētu informāciju parametri tabulā, sākot no šūnas pa labi. Nākamais norādījums ir šūnā A12.","PROJEKTA VEIDS","KONTA PĀRVALDNIEKS","PROJEKTA VADĪTĀJS","STRATĒĢIJAS VADĪTĀJS","NOFORMĒJUMA SPECIĀLISTS","PASĀKUMA PERSONĀLS","ADMINISTRATĪVIE DARBINIEKI","Kopsumma"]
[null,"Pasākuma stratēģijas izstrāde",{"v":0.2,"d":"20%"},{"v":0.1,"d":"10%"},{"v":0.6,"d":"60%"},{"v":0,"d":"0%"},{"v":0,"d":"0%"},{"v":0.1,"d":"10%"},{"$f":"SUM(Parametri[[#This Row],[KONTA PĀRVALDNIEKS]:[ADMINISTRATĪVIE DARBINIEKI]])","v":{"v":1,"d":"100%"}}]
[null,"Pasākumu plānošana",{"v":0.2,"d":"20%"},{"v":0.5,"d":"50%"},{"v":0.1,"d":"10%"},{"v":0.1,"d":"10%"},{"v":0,"d":"0%"},{"v":0.1,"d":"10%"},{"$f":"SUM(Parametri[[#This Row],[KONTA PĀRVALDNIEKS]:[ADMINISTRATĪVIE DARBINIEKI]])","v":{"v":0.9999999999999999,"d":"100%"}}]
[null,"Pasākuma noformējums",{"v":0.2,"d":"20%"},{"v":0.2,"d":"20%"},{"v":0,"d":"0%"},{"v":0.5,"d":"50%"},{"v":0,"d":"0%"},{"v":0.1,"d":"10%"},{"$f":"SUM(Parametri[[#This Row],[KONTA PĀRVALDNIEKS]:[ADMINISTRATĪVIE DARBINIEKI]])","v":{"v":1,"d":"100%"}}]
[null,"Pasākuma loģistika",{"v":0.2,"d":"20%"},{"v":0.6,"d":"60%"},{"v":0,"d":"0%"},{"v":0,"d":"0%"},{"v":0.1,"d":"10%"},{"v":0.1,"d":"10%"},{"$f":"SUM(Parametri[[#This Row],[KONTA PĀRVALDNIEKS]:[ADMINISTRATĪVIE DARBINIEKI]])","v":{"v":1,"d":"100%"}}]
[null,"Pasākuma personāls",{"v":0.2,"d":"20%"},{"v":0.1,"d":"10%"},{"v":0,"d":"0%"},{"v":0,"d":"0%"},{"v":0.6,"d":"60%"},{"v":0.1,"d":"10%"},{"$f":"SUM(Parametri[[#This Row],[KONTA PĀRVALDNIEKS]:[ADMINISTRATĪVIE DARBINIEKI]])","v":{"v":1,"d":"100%"}}]
[null,"Pasākuma novērtēšana",{"v":0.2,"d":"20%"},{"v":0.2,"d":"20%"},{"v":0.2,"d":"20%"},{"v":0.2,"d":"20%"},{"v":0,"d":"0%"},{"v":0.2,"d":"20%"},{"$f":"SUM(Parametri[[#This Row],[KONTA PĀRVALDNIEKS]:[ADMINISTRATĪVIE DARBINIEKI]])","v":{"v":1,"d":"100%"}}]
["Šūnās pa labi ievadiet jauktās procentu likmes, no šūnas C12 līdz šūnai H12. Nākamais norādījums ir šūnā A14.","Jauktās procentu likmes",{"v":180,"d":"180 EUR"},{"v":120,"d":"120 EUR"},{"v":150,"d":"150 EUR"},{"v":100,"d":"100 EUR"},{"v":80,"d":"80 EUR"},{"v":60,"d":"60 EUR"}]
[]
["Stabiņu diagramma, kurā norādītas plānotās izmaksas pret faktiskajām, ir šūnā pa labi, un šūnā F14 ir stabiņu diagramma, kurā norādītas plānotās stundas pret faktiskajām.",{"$nulls":4},"Šajā šūnā ir stabiņu diagramma, kurā norādītas plānotās stundas pret faktiskajām stundām."]
[null,null,"KONTA PĀRVALDNIEKS","PROJEKTA VADĪTĀJS","STRATĒĢIJAS VADĪTĀJS","NOFORMĒJUMA SPECIĀLISTS","PASĀKUMA PERSONĀLS","ADMINISTRATĪVIE DARBINIEKI"]
[null,"PLĀNOTĀS IZMAKSAS",{"$f":"SUBTOTAL(109,DetalizētaInformācijaParProjektu[KONTA PĀRVALDNIEKS])","v":{"v":54000,"d":"54,000.00 EUR"}},{"$f":"SUBTOTAL(109,DetalizētaInformācijaParProjektu[PROJEKTA VADĪTĀJS])","v":{"v":52200,"d":"52,200.00 EUR"}},{"$f":"SUBTOTAL(109,DetalizētaInformācijaParProjektu[STRATĒĢIJAS VADĪTĀJS])","v":{"v":24000,"d":"24,000.00 EUR"}},{"$f":"SUBTOTAL(109,DetalizētaInformācijaParProjektu[NOFORMĒJUMA SPECIĀLISTS])","v":{"v":29000,"d":"29,000.00 EUR"}},{"$f":"SUBTOTAL(109,DetalizētaInformācijaParProjektu[PASĀKUMA PERSONĀLS])","v":{"v":13200,"d":"13,200.00 EUR"}},{"$f":"SUBTOTAL(109,DetalizētaInformācijaParProjektu[ADMINISTRATĪVIE DARBINIEKI])","v":{"v":9000,"d":"9,000.00 EUR"}}]
[null,"FAKTISKĀS IZMAKSAS",{"$f":"SUBTOTAL(109,DetalizētaInformācijaParProjektu[[KONTA PĀRVALDNIEKS ]])","v":{"v":54360,"d":"54,360.00 EUR"}},{"$f":"SUBTOTAL(109,DetalizētaInformācijaParProjektu[[PROJEKTA VADĪTĀJS ]])","v":{"v":51540,"d":"51,540.00 EUR"}},{"$f":"SUBTOTAL(109,DetalizētaInformācijaParProjektu[[STRATĒĢIJAS VADĪTĀJS ]])","v":{"v":25650,"d":"25,650.00 EUR"}},{"$f":"SUBTOTAL(109,DetalizētaInformācijaParProjektu[[NOFORMĒJUMA SPECIĀLISTS ]])","v":{"v":28900,"d":"28,900.00 EUR"}},{"$f":"SUBTOTAL(109,DetalizētaInformācijaParProjektu[[PASĀKUMA PERSONĀLS ]])","v":{"v":13400,"d":"13,400.00 EUR"}},{"$f":"SUBTOTAL(109,DetalizētaInformācijaParProjektu[[ADMINISTRATĪVIE DARBINIEKI ]])","v":{"v":9060,"d":"9,060.00 EUR"}}]
[null,"PLĀNOTĀS STUNDAS",{"$f":"C16/$C$12","v":{"v":300,"d":"300.00"}},{"$f":"D16/$C$12","v":{"v":290,"d":"290.00"}},{"v":133.33333333333334,"d":"133.33"},{"v":161.11111111111111,"d":"161.11"},{"v":73.33333333333333,"d":"73.33"},{"v":50,"d":"50.00"}]
[null,"FAKTISKĀS STUNDAS",{"$f":"C17/$C$12","v":{"v":302,"d":"302.00"}},{"$f":"D17/$C$12","v":{"v":286.3333333333333,"d":"286.33"}},{"$f":"E17/$C$12","v":{"v":142.5,"d":"142.50"}},{"$f":"F17/$C$12","v":{"v":160.55555555555554,"d":"160.56"}},{"$f":"G17/$C$12","v":{"v":74.44444444444444,"d":"74.44"}},{"$f":"H17/$C$12","v":{"v":50.333333333333336,"d":"50.33"}}]
[]
[]
[]
[]
[null,"Šajā šūnā ir stabiņu diagramma, kurā norādītas plānotās izmaksas pret faktiskajām izmaksām."]

{"sheet":"INFORMĀCIJA PAR PROJEKTU","index":2,"n_rows":10,"n_cols":23,"rows_kept":10}
["Šajā darblapā izveidojiet detalizētu informācija par projektu. Šūnā pa labi tiek automātiski atjaunināts uzņēmuma nosaukums Šīs kolonnas šūnās ir noderīgi norādījumi. Bultiņa uz leju, lai sāktu darbu.",{"$f":"'PROJEKTA PARAMETRI'!B1","v":"Uzņēmuma nosaukums"}]
["Šīs darblapas nosaukums ir šūnā pa labi.","Pasākuma vadības projekta žurnāls"]
["Konfidencialitātes ziņojums ir šūnā pa labi.",{"$f":"'PROJEKTA PARAMETRI'!B3","v":"Uzņēmuma nosaukums , konfidenciāli"}]
["Ievadiet informāciju tabulā Detalizēta informācija par projektu, sākot no šūnas pa labi.\nINFORMĀCIJA\nLai pievienotu rindu tabulas labajā pusē, atlasiet pašu pēdējo tabulas šūnu labajā pusē (nevis kopsummas rindu) un nospiediet tabulēšanas taustiņu, vai arī nospiediet taustiņu kombināciju SHIFT+F10, kur vēlaties ievietot rindu, un atlasiet Ievietot | Tabulas rindas Augstāk/Tabulas rinda zemāk.\nNodrošiniet, lai visas neizmantotās rindas būtu izdzēstas, jo projekta kopsummas rakurstabula izmanto visas tabulas šūnas un pretējā gadījumā rezultāti būtu kļūdaini.","PROJEKTA NOSAUKUMS","PROJEKTA VEIDS","PLĀNOTAIS SĀKUMS","PLĀNOTĀS BEIGAS","FAKTISKAIS SĀKUMS","FAKTISKĀS BEIGAS","PLĀNOTAIS DARBS","FAKTISKAIS DARBS","PLĀNOTAIS ILGUMS","FAKTISKAIS ILGUMS","KONTA PĀRVALDNIEKS","PROJEKTA VADĪTĀJS","STRATĒĢIJAS VADĪTĀJS","NOFORMĒJUMA SPECIĀLISTS","PASĀKUMA PERSONĀLS","ADMINISTRATĪVIE DARBINIEKI","KONTA PĀRVALDNIEKS ","PROJEKTA VADĪTĀJS ","STRATĒĢIJAS VADĪTĀJS ","NOFORMĒJUMA SPECIĀLISTS ","PASĀKUMA PERSONĀLS ","ADMINISTRATĪVIE DARBINIEKI "]
[null,"1. projekts","Pasākuma stratēģijas izstrāde",{"$f":"DATE(YEAR(TODAY()),6,9)","v":"2019-06-09"},{"$f":"DATE(YEAR(TODAY()),8,7)","v":"2019-08-07"},{"$f":"DATE(YEAR(TODAY()),6,29)","v":"2019-06-29"},{"$f":"DATE(YEAR(TODAY()),9,3)","v":"2019-09-03"},200,220,{"$f":"DAYS360(DetalizētaInformācijaParProjektu[[#This Row],[PLĀNOTAIS SĀKUMS]],DetalizētaInformācijaParProjektu[[#This Row],[PLĀNOTĀS BEIGAS]],FALSE)","v":58},{"$f":"DAYS360(DetalizētaInformācijaParProjektu[[#This Row],[FAKTISKAIS SĀKUMS]],DetalizētaInformācijaParProjektu[[#This Row],[FAKTISKĀS BEIGAS]],FALSE)","v":64},{"$f":"INDEX(Parametri[],MATCH(DetalizētaInformācijaParProjektu[[#This Row],[PROJEKTA VEIDS]],Parametri[PROJEKTA VEIDS],0),MATCH(DetalizētaInformācijaParProjektu[[#Headers],[KONTA PĀRVALDNIEKS]],Parametri[#Headers],0))*INDEX('PROJEKTA PARAMETRI'!$B$12:$H$12,1,MATCH(DetalizētaInformācijaParProjektu[[#Headers],[KONTA PĀRVALDNIEKS]],Parametri[#Headers],0))*DetalizētaInformācijaParProjektu[[#This Row],[PLĀNOTAIS DARBS]]","v":{"v":7200,"d":"7,200 EUR"}},{"$f":"INDEX(Parametri[],MATCH(DetalizētaInformācijaParProjektu[[#This Row],[PROJEKTA VEIDS]],Parametri[PROJEKTA VEIDS],0),MATCH(DetalizētaInformācijaParProjektu[[#Headers],[PROJEKTA VADĪTĀJS]],Parametri[#Headers],0))*INDEX('PROJEKTA PARAMETRI'!$B$12:$H$12,1,MATCH(DetalizētaInformācijaParProjektu[[#Headers],[PROJEKTA VADĪTĀJS]],Parametri[#Headers],0))*DetalizētaInformācijaParProjektu[[#This Row],[PLĀNOTAIS DARBS]]","v":{"v":2400,"d":"2,400 EUR"}},{"$f":"INDEX(Parametri[],MATCH(DetalizētaInformācijaParProjektu[[#This Row],[PROJEKTA VEIDS]],Parametri[PROJEKTA VEIDS],0),MATCH(DetalizētaInformācijaParProjektu[[#Headers],[STRATĒĢIJAS VADĪTĀJS]],Parametri[#Headers],0))*INDEX('PROJEKTA PARAMETRI'!$B$12:$H$12,1,MATCH(DetalizētaInformācijaParProjektu[[#Headers],[STRATĒĢIJAS VADĪTĀJS]],Parametri[#Headers],0))*DetalizētaInformācijaParProjektu[[#This Row],[PLĀNOTAIS DARBS]]","v":{"v":18000,"d":"18,000 EUR"}},{"$f":"INDEX(Parametri[],MATCH(DetalizētaInformācijaParProjektu[[#This Row],[PROJEKTA VEIDS]],Parametri[PROJEKTA VEIDS],0),MATCH(DetalizētaInformācijaParProjektu[[#Headers],[NOFORMĒJUMA SPECIĀLISTS]],Parametri[#Headers],0))*INDEX('PROJEKTA PARAMETRI'!$B$12:$H$12,1,MATCH(DetalizētaInformācijaParProjektu[[#Headers],[NOFORMĒJUMA SPECIĀLISTS]],Parametri[#Headers],0))*DetalizētaInformācijaParProjektu[[#This Row],[PLĀNOTAIS DARBS]]","v":{"v":0,"d":"0 EUR"}},{"$f":"INDEX(Parametri[],MATCH(DetalizētaInformācijaParProjektu[[#This Row],[PROJEKTA VEIDS]],Parametri[PROJEKTA VEIDS],0),MATCH(DetalizētaInformācijaParProjektu[[#Headers],[PASĀKUMA PERSONĀLS]],Parametri[#Headers],0))*INDEX('PROJEKTA PARAMETRI'!$B$12:$H$12,1,MATCH(DetalizētaInformācijaParProjektu[[#Headers],[PASĀKUMA PERSONĀLS]],Parametri[#Headers],0))*DetalizētaInformācijaParProjektu[[#This Row],[PLĀNOTAIS DARBS]]","v":{"v":0,"d":"0 EUR"}},{"$f":"INDEX(Parametri[],MATCH(DetalizētaInformācijaParProjektu[[#This Row],[PROJEKTA VEIDS]],Parametri[PROJEKTA VEIDS],0),MATCH(DetalizētaInformācijaParProjektu[[#Headers],[ADMINISTRATĪVIE DARBINIEKI]],Parametri[#Headers],0))*INDEX('PROJEKTA PARAMETRI'!$B$12:$H$12,1,MATCH(DetalizētaInformācijaParProjektu[[#Headers],[ADMINISTRATĪVIE DARBINIEKI]],Parametri[#Headers],0))*DetalizētaInformācijaParProjektu[[#This Row],[PLĀNOTAIS DARBS]]","v":{"v":1200,"d":"1,200 EUR"}},{"$f":"INDEX(Parametri[],MATCH(DetalizētaInformācijaParProjektu[[#This Row],[PROJEKTA VEIDS]],Parametri[PROJEKTA VEIDS],0),MATCH(DetalizētaInformācijaParProjektu[[#Headers],[KONTA PĀRVALDNIEKS]],Parametri[#Headers],0))*INDEX('PROJEKTA PARAMETRI'!$B$12:$H$12,1,MATCH(DetalizētaInformācijaParProjektu[[#Headers],[KONTA PĀRVALDNIEKS]],Parametri[#Headers],0))*DetalizētaInformācijaParProjektu[[#This Row],[FAKTISKAIS DARBS]]","v":{"v":7920,"d":"7,920 EUR"}},{"$f":"INDEX(Parametri[],MATCH(DetalizētaInformācijaParProjektu[[#This Row],[PROJEKTA VEIDS]],Parametri[PROJEKTA VEIDS],0),MATCH(DetalizētaInformācijaParProjektu[[#Headers],[PROJEKTA VADĪTĀJS]],Parametri[#Headers],0))*INDEX('PROJEKTA PARAMETRI'!$B$12:$H$12,1,MATCH(DetalizētaInformācijaParProjektu[[#Headers],[PROJEKTA VADĪTĀJS]],Parametri[#Headers],0))*DetalizētaInformācijaParProjektu[[#This Row],[FAKTISKAIS DARBS]]","v":{"v":2640,"d":"2,640 EUR"}},{"$f":"INDEX(Parametri[],MATCH(DetalizētaInformācijaParProjektu[[#This Row],[PROJEKTA VEIDS]],Parametri[PROJEKTA VEIDS],0),MATCH(DetalizētaInformācijaParProjektu[[#Headers],[STRATĒĢIJAS VADĪTĀJS]],Parametri[#Headers],0))*INDEX('PROJEKTA PARAMETRI'!$B$12:$H$12,1,MATCH(DetalizētaInformācijaParProjektu[[#Headers],[STRATĒĢIJAS VADĪTĀJS]],Parametri[#Headers],0))*DetalizētaInformācijaParProjektu[[#This Row],[FAKTISKAIS DARBS]]","v":{"v":19800,"d":"19,800 EUR"}},{"$f":"INDEX(Parametri[],MATCH(DetalizētaInformācijaParProjektu[[#This Row],[PROJEKTA VEIDS]],Parametri[PROJEKTA VEIDS],0),MATCH(DetalizētaInformācijaParProjektu[[#Headers],[NOFORMĒJUMA SPECIĀLISTS]],Parametri[#Headers],0))*INDEX('PROJEKTA PARAMETRI'!$B$12:$H$12,1,MATCH(DetalizētaInformācijaParProjektu[[#Headers],[NOFORMĒJUMA SPECIĀLISTS]],Parametri[#Headers],0))*DetalizētaInformācijaParProjektu[[#This Row],[FAKTISKAIS DARBS]]","v":{"v":0,"d":"0 EUR"}},{"$f":"INDEX(Parametri[],MATCH(DetalizētaInformācijaParProjektu[[#This Row],[PROJEKTA VEIDS]],Parametri[PROJEKTA VEIDS],0),MATCH(DetalizētaInformācijaParProjektu[[#Headers],[PASĀKUMA PERSONĀLS]],Parametri[#Headers],0))*INDEX('PROJEKTA PARAMETRI'!$B$12:$H$12,1,MATCH(DetalizētaInformācijaParProjektu[[#Headers],[PASĀKUMA PERSONĀLS]],Parametri[#Headers],0))*DetalizētaInformācijaParProjektu[[#This Row],[FAKTISKAIS DARBS]]","v":{"v":0,"d":"0 EUR"}},{"$f":"INDEX(Parametri[],MATCH(DetalizētaInformācijaParProjektu[[#This Row],[PROJEKTA VEIDS]],Parametri[PROJEKTA VEIDS],0),MATCH(DetalizētaInformācijaParProjektu[[#Headers],[ADMINISTRATĪVIE DARBINIEKI]],Parametri[#Headers],0))*INDEX('PROJEKTA PARAMETRI'!$B$12:$H$12,1,MATCH(DetalizētaInformācijaParProjektu[[#Headers],[ADMINISTRATĪVIE DARBINIEKI]],Parametri[#Headers],0))*DetalizētaInformācijaParProjektu[[#This Row],[FAKTISKAIS DARBS]]","v":{"v":1320,"d":"1,320 EUR"}}]
[null,"2. projekts","Pasākumu plānošana",{"$f":"DATE(YEAR(TODAY())+1,6,25)","v":"2020-06-25"},{"$f":"DATE(YEAR(TODAY())+1,7,27)","v":"2020-07-27"},{"$f":"DATE(YEAR(TODAY()),7,15)","v":"2019-07-15"},{"$f":"DATE(YEAR(TODAY())+1,8,25)","v":"2020-08-25"},400,390,{"$f":"DAYS360(DetalizētaInformācijaParProjektu[[#This Row],[PLĀNOTAIS SĀKUMS]],DetalizētaInformācijaParProjektu[[#This Row],[PLĀNOTĀS BEIGAS]],FALSE)","v":32},{"$f":"DAYS360(DetalizētaInformācijaParProjektu[[#This Row],[FAKTISKAIS SĀKUMS]],DetalizētaInformācijaParProjektu[[#This Row],[FAKTISKĀS BEIGAS]],FALSE)","v":400},{"$f":"INDEX(Parametri[],MATCH(DetalizētaInformācijaParProjektu[[#This Row],[PROJEKTA VEIDS]],Parametri[PROJEKTA VEIDS],0),MATCH(DetalizētaInformācijaParProjektu[[#Headers],[KONTA PĀRVALDNIEKS]],Parametri[#Headers],0))*INDEX('PROJEKTA PARAMETRI'!$B$12:$H$12,1,MATCH(DetalizētaInformācijaParProjektu[[#Headers],[KONTA PĀRVALDNIEKS]],Parametri[#Headers],0))*DetalizētaInformācijaParProjektu[[#This Row],[PLĀNOTAIS DARBS]]","v":{"v":14400,"d":"14,400 EUR"}},{"$f":"INDEX(Parametri[],MATCH(DetalizētaInformācijaParProjektu[[#This Row],[PROJEKTA VEIDS]],Parametri[PROJEKTA VEIDS],0),MATCH(DetalizētaInformācijaParProjektu[[#Headers],[PROJEKTA VADĪTĀJS]],Parametri[#Headers],0))*INDEX('PROJEKTA PARAMETRI'!$B$12:$H$12,1,MATCH(DetalizētaInformācijaParProjektu[[#Headers],[PROJEKTA VADĪTĀJS]],Parametri[#Headers],0))*DetalizētaInformācijaParProjektu[[#This Row],[PLĀNOTAIS DARBS]]","v":{"v":24000,"d":"24,000 EUR"}},{"$f":"INDEX(Parametri[],MATCH(DetalizētaInformācijaParProjektu[[#This Row],[PROJEKTA VEIDS]],Parametri[PROJEKTA VEIDS],0),MATCH(DetalizētaInformācijaParProjektu[[#Headers],[STRATĒĢIJAS VADĪTĀJS]],Parametri[#Headers],0))*INDEX('PROJEKTA PARAMETRI'!$B$12:$H$12,1,MATCH(DetalizētaInformācijaParProjektu[[#Headers],[STRATĒĢIJAS VADĪTĀJS]],Parametri[#Headers],0))*DetalizētaInformācijaParProjektu[[#This Row],[PLĀNOTAIS DARBS]]","v":{"v":6000,"d":"6,000 EUR"}},{"$f":"INDEX(Parametri[],MATCH(DetalizētaInformācijaParProjektu[[#This Row],[PROJEKTA VEIDS]],Parametri[PROJEKTA VEIDS],0),MATCH(DetalizētaInformācijaParProjektu[[#Headers],[NOFORMĒJUMA SPECIĀLISTS]],Parametri[#Headers],0))*INDEX('PROJEKTA PARAMETRI'!$B$12:$H$12,1,MATCH(DetalizētaInformācijaParProjektu[[#Headers],[NOFORMĒJUMA SPECIĀLISTS]],Parametri[#Headers],0))*DetalizētaInformācijaParProjektu[[#This Row],[PLĀNOTAIS DARBS]]","v":{"v":4000,"d":"4,000 EUR"}},{"$f":"INDEX(Parametri[],MATCH(DetalizētaInformācijaParProjektu[[#This Row],[PROJEKTA VEIDS]],Parametri[PROJEKTA VEIDS],0),MATCH(DetalizētaInformācijaParProjektu[[#Headers],[PASĀKUMA PERSONĀLS]],Parametri[#Headers],0))*INDEX('PROJEKTA PARAMETRI'!$B$12:$H$12,1,MATCH(DetalizētaInformācijaParProjektu[[#Headers],[PASĀKUMA PERSONĀLS]],Parametri[#Headers],0))*DetalizētaInformācijaParProjektu[[#This Row],[PLĀNOTAIS DARBS]]","v":{"v":0,"d":"0 EUR"}},{"$f":"INDEX(Parametri[],MATCH(DetalizētaInformācijaParProjektu[[#This Row],[PROJEKTA VEIDS]],Parametri[PROJEKTA VEIDS],0),MATCH(DetalizētaInformācijaParProjektu[[#Headers],[ADMINISTRATĪVIE DARBINIEKI]],Parametri[#Headers],0))*INDEX('PROJEKTA PARAMETRI'!$B$12:$H$12,1,MATCH(DetalizētaInformācijaParProjektu[[#Headers],[ADMINISTRATĪVIE DARBINIEKI]],Parametri[#Headers],0))*DetalizētaInformācijaParProjektu[[#This Row],[PLĀNOTAIS DARBS]]","v":{"v":2400,"d":"2,400 EUR"}},{"$f":"INDEX(Parametri[],MATCH(DetalizētaInformācijaParProjektu[[#This Row],[PROJEKTA VEIDS]],Parametri[PROJEKTA VEIDS],0),MATCH(DetalizētaInformācijaParProjektu[[#Headers],[KONTA PĀRVALDNIEKS]],Parametri[#Headers],0))*INDEX('PROJEKTA PARAMETRI'!$B$12:$H$12,1,MATCH(DetalizētaInformācijaParProjektu[[#Headers],[KONTA PĀRVALDNIEKS]],Parametri[#Headers],0))*DetalizētaInformācijaParProjektu[[#This Row],[FAKTISKAIS DARBS]]","v":{"v":14040,"d":"14,040 EUR"}},{"$f":"INDEX(Parametri[],MATCH(DetalizētaInformācijaParProjektu[[#This Row],[PROJEKTA VEIDS]],Parametri[PROJEKTA VEIDS],0),MATCH(DetalizētaInformācijaParProjektu[[#Headers],[PROJEKTA VADĪTĀJS]],Parametri[#Headers],0))*INDEX('PROJEKTA PARAMETRI'!$B$12:$H$12,1,MATCH(DetalizētaInformācijaParProjektu[[#Headers],[PROJEKTA VADĪTĀJS]],Parametri[#Headers],0))*DetalizētaInformācijaParProjektu[[#This Row],[FAKTISKAIS DARBS]]","v":{"v":23400,"d":"23,400 EUR"}},{"$f":"INDEX(Parametri[],MATCH(DetalizētaInformācijaParProjektu[[#This Row],[PROJEKTA VEIDS]],Parametri[PROJEKTA VEIDS],0),MATCH(DetalizētaInformācijaParProjektu[[#Headers],[STRATĒĢIJAS VADĪTĀJS]],Parametri[#Headers],0))*INDEX('PROJEKTA PARAMETRI'!$B$12:$H$12,1,MATCH(DetalizētaInformācijaParProjektu[[#Headers],[STRATĒĢIJAS VADĪTĀJS]],Parametri[#Headers],0))*DetalizētaInformācijaParProjektu[[#This Row],[FAKTISKAIS DARBS]]","v":{"v":5850,"d":"5,850 EUR"}},{"$f":"INDEX(Parametri[],MATCH(DetalizētaInformācijaParProjektu[[#This Row],[PROJEKTA VEIDS]],Parametri[PROJEKTA VEIDS],0),MATCH(DetalizētaInformācijaParProjektu[[#Headers],[NOFORMĒJUMA SPECIĀLISTS]],Parametri[#Headers],0))*INDEX('PROJEKTA PARAMETRI'!$B$12:$H$12,1,MATCH(DetalizētaInformācijaParProjektu[[#Headers],[NOFORMĒJUMA SPECIĀLISTS]],Parametri[#Headers],0))*DetalizētaInformācijaParProjektu[[#This Row],[FAKTISKAIS DARBS]]","v":{"v":3900,"d":"3,900 EUR"}},{"$f":"INDEX(Parametri[],MATCH(DetalizētaInformācijaParProjektu[[#This Row],[PROJEKTA VEIDS]],Parametri[PROJEKTA VEIDS],0),MATCH(DetalizētaInformācijaParProjektu[[#Headers],[PASĀKUMA PERSONĀLS]],Parametri[#Headers],0))*INDEX('PROJEKTA PARAMETRI'!$B$12:$H$12,1,MATCH(DetalizētaInformācijaParProjektu[[#Headers],[PASĀKUMA PERSONĀLS]],Parametri[#Headers],0))*DetalizētaInformācijaParProjektu[[#This Row],[FAKTISKAIS DARBS]]","v":{"v":0,"d":"0 EUR"}},{"$f":"INDEX(Parametri[],MATCH(DetalizētaInformācijaParProjektu[[#This Row],[PROJEKTA VEIDS]],Parametri[PROJEKTA VEIDS],0),MATCH(DetalizētaInformācijaParProjektu[[#Headers],[ADMINISTRATĪVIE DARBINIEKI]],Parametri[#Headers],0))*INDEX('PROJEKTA PARAMETRI'!$B$12:$H$12,1,MATCH(DetalizētaInformācijaParProjektu[[#Headers],[ADMINISTRATĪVIE DARBINIEKI]],Parametri[#Headers],0))*DetalizētaInformācijaParProjektu[[#This Row],[FAKTISKAIS DARBS]]","v":{"v":2340,"d":"2,340 EUR"}}]
[null,"3. projekts","Pasākuma noformējums",{"$f":"DATE(YEAR(TODAY())+2,7,12)","v":"2021-07-12"},{"$f":"DATE(YEAR(TODAY())+2,9,19)","v":"2021-09-19"},{"$f":"DATE(YEAR(TODAY())+6,8,7)","v":"2025-08-07"},{"$f":"DATE(YEAR(TODAY())+6,10,10)","v":"2025-10-10"},500,500,{"$f":"DAYS360(DetalizētaInformācijaParProjektu[[#This Row],[PLĀNOTAIS SĀKUMS]],DetalizētaInformācijaParProjektu[[#This Row],[PLĀNOTĀS BEIGAS]],FALSE)","v":67},{"$f":"DAYS360(DetalizētaInformācijaParProjektu[[#This Row],[FAKTISKAIS SĀKUMS]],DetalizētaInformācijaParProjektu[[#This Row],[FAKTISKĀS BEIGAS]],FALSE)","v":63},{"$f":"INDEX(Parametri[],MATCH(DetalizētaInformācijaParProjektu[[#This Row],[PROJEKTA VEIDS]],Parametri[PROJEKTA VEIDS],0),MATCH(DetalizētaInformācijaParProjektu[[#Headers],[KONTA PĀRVALDNIEKS]],Parametri[#Headers],0))*INDEX('PROJEKTA PARAMETRI'!$B$12:$H$12,1,MATCH(DetalizētaInformācijaParProjektu[[#Headers],[KONTA PĀRVALDNIEKS]],Parametri[#Headers],0))*DetalizētaInformācijaParProjektu[[#This Row],[PLĀNOTAIS DARBS]]","v":{"v":18000,"d":"18,000 EUR"}},{"$f":"INDEX(Parametri[],MATCH(DetalizētaInformācijaParProjektu[[#This Row],[PROJEKTA VEIDS]],Parametri[PROJEKTA VEIDS],0),MATCH(DetalizētaInformācijaParProjektu[[#Headers],[PROJEKTA VADĪTĀJS]],Parametri[#Headers],0))*INDEX('PROJEKTA PARAMETRI'!$B$12:$H$12,1,MATCH(DetalizētaInformācijaParProjektu[[#Headers],[PROJEKTA VADĪTĀJS]],Parametri[#Headers],0))*DetalizētaInformācijaParProjektu[[#This Row],[PLĀNOTAIS DARBS]]","v":{"v":12000,"d":"12,000 EUR"}},{"$f":"INDEX(Parametri[],MATCH(DetalizētaInformācijaParProjektu[[#This Row],[PROJEKTA VEIDS]],Parametri[PROJEKTA VEIDS],0),MATCH(DetalizētaInformācijaParProjektu[[#Headers],[STRATĒĢIJAS VADĪTĀJS]],Parametri[#Headers],0))*INDEX('PROJEKTA PARAMETRI'!$B$12:$H$12,1,MATCH(DetalizētaInformācijaParProjektu[[#Headers],[STRATĒĢIJAS VADĪTĀJS]],Parametri[#Headers],0))*DetalizētaInformācijaParProjektu[[#This Row],[PLĀNOTAIS DARBS]]","v":{"v":0,"d":"0 EUR"}},{"$f":"INDEX(Parametri[],MATCH(DetalizētaInformācijaParProjektu[[#This Row],[PROJEKTA VEIDS]],Parametri[PROJEKTA VEIDS],0),MATCH(DetalizētaInformācijaParProjektu[[#Headers],[NOFORMĒJUMA SPECIĀLISTS]],Parametri[#Headers],0))*INDEX('PROJEKTA PARAMETRI'!$B$12:$H$12,1,MATCH(DetalizētaInformācijaParProjektu[[#Headers],[NOFORMĒJUMA SPECIĀLISTS]],Parametri[#Headers],0))*DetalizētaInformācijaParProjektu[[#This Row],[PLĀNOTAIS DARBS]]","v":{"v":25000,"d":"25,000 EUR"}},{"$f":"INDEX(Parametri[],MATCH(DetalizētaInformācijaParProjektu[[#This Row],[PROJEKTA VEIDS]],Parametri[PROJEKTA VEIDS],0),MATCH(DetalizētaInformācijaParProjektu[[#Headers],[PASĀKUMA PERSONĀLS]],Parametri[#Headers],0))*INDEX('PROJEKTA PARAMETRI'!$B$12:$H$12,1,MATCH(DetalizētaInformācijaParProjektu[[#Headers],[PASĀKUMA PERSONĀLS]],Parametri[#Headers],0))*DetalizētaInformācijaParProjektu[[#This Row],[PLĀNOTAIS DARBS]]","v":{"v":0,"d":"0 EUR"}},{"$f":"INDEX(Parametri[],MATCH(DetalizētaInformācijaParProjektu[[#This Row],[PROJEKTA VEIDS]],Parametri[PROJEKTA VEIDS],0),MATCH(DetalizētaInformācijaParProjektu[[#Headers],[ADMINISTRATĪVIE DARBINIEKI]],Parametri[#Headers],0))*INDEX('PROJEKTA PARAMETRI'!$B$12:$H$12,1,MATCH(DetalizētaInformācijaParProjektu[[#Headers],[ADMINISTRATĪVIE DARBINIEKI]],Parametri[#Headers],0))*DetalizētaInformācijaParProjektu[[#This Row],[PLĀNOTAIS DARBS]]","v":{"v":3000,"d":"3,000 EUR"}},{"$f":"INDEX(Parametri[],MATCH(DetalizētaInformācijaParProjektu[[#This Row],[PROJEKTA VEIDS]],Parametri[PROJEKTA VEIDS],0),MATCH(DetalizētaInformācijaParProjektu[[#Headers],[KONTA PĀRVALDNIEKS]],Parametri[#Headers],0))*INDEX('PROJEKTA PARAMETRI'!$B$12:$H$12,1,MATCH(DetalizētaInformācijaParProjektu[[#Headers],[KONTA PĀRVALDNIEKS]],Parametri[#Headers],0))*DetalizētaInformācijaParProjektu[[#This Row],[FAKTISKAIS DARBS]]","v":{"v":18000,"d":"18,000 EUR"}},{"$f":"INDEX(Parametri[],MATCH(DetalizētaInformācijaParProjektu[[#This Row],[PROJEKTA VEIDS]],Parametri[PROJEKTA VEIDS],0),MATCH(DetalizētaInformācijaParProjektu[[#Headers],[PROJEKTA VADĪTĀJS]],Parametri[#Headers],0))*INDEX('PROJEKTA PARAMETRI'!$B$12:$H$12,1,MATCH(DetalizētaInformācijaParProjektu[[#Headers],[PROJEKTA VADĪTĀJS]],Parametri[#Headers],0))*DetalizētaInformācijaParProjektu[[#This Row],[FAKTISKAIS DARBS]]","v":{"v":12000,"d":"12,000 EUR"}},{"$f":"INDEX(Parametri[],MATCH(DetalizētaInformācijaParProjektu[[#This Row],[PROJEKTA VEIDS]],Parametri[PROJEKTA VEIDS],0),MATCH(DetalizētaInformācijaParProjektu[[#Headers],[STRATĒĢIJAS VADĪTĀJS]],Parametri[#Headers],0))*INDEX('PROJEKTA PARAMETRI'!$B$12:$H$12,1,MATCH(DetalizētaInformācijaParProjektu[[#Headers],[STRATĒĢIJAS VADĪTĀJS]],Parametri[#Headers],0))*DetalizētaInformācijaParProjektu[[#This Row],[FAKTISKAIS DARBS]]","v":{"v":0,"d":"0 EUR"}},{"$f":"INDEX(Parametri[],MATCH(DetalizētaInformācijaParProjektu[[#This Row],[PROJEKTA VEIDS]],Parametri[PROJEKTA VEIDS],0),MATCH(DetalizētaInformācijaParProjektu[[#Headers],[NOFORMĒJUMA SPECIĀLISTS]],Parametri[#Headers],0))*INDEX('PROJEKTA PARAMETRI'!$B$12:$H$12,1,MATCH(DetalizētaInformācijaParProjektu[[#Headers],[NOFORMĒJUMA SPECIĀLISTS]],Parametri[#Headers],0))*DetalizētaInformācijaParProjektu[[#This Row],[FAKTISKAIS DARBS]]","v":{"v":25000,"d":"25,000 EUR"}},{"$f":"INDEX(Parametri[],MATCH(DetalizētaInformācijaParProjektu[[#This Row],[PROJEKTA VEIDS]],Parametri[PROJEKTA VEIDS],0),MATCH(DetalizētaInformācijaParProjektu[[#Headers],[PASĀKUMA PERSONĀLS]],Parametri[#Headers],0))*INDEX('PROJEKTA PARAMETRI'!$B$12:$H$12,1,MATCH(DetalizētaInformācijaParProjektu[[#Headers],[PASĀKUMA PERSONĀLS]],Parametri[#Headers],0))*DetalizētaInformācijaParProjektu[[#This Row],[FAKTISKAIS DARBS]]","v":{"v":0,"d":"0 EUR"}},{"$f":"INDEX(Parametri[],MATCH(DetalizētaInformācijaParProjektu[[#This Row],[PROJEKTA VEIDS]],Parametri[PROJEKTA VEIDS],0),MATCH(DetalizētaInformācijaParProjektu[[#Headers],[ADMINISTRATĪVIE DARBINIEKI]],Parametri[#Headers],0))*INDEX('PROJEKTA PARAMETRI'!$B$12:$H$12,1,MATCH(DetalizētaInformācijaParProjektu[[#Headers],[ADMINISTRATĪVIE DARBINIEKI]],Parametri[#Headers],0))*DetalizētaInformācijaParProjektu[[#This Row],[FAKTISKAIS DARBS]]","v":{"v":3000,"d":"3,000 EUR"}}]
[null,"4. projekts","Pasākuma loģistika",{"$f":"DATE(YEAR(TODAY())+3,7,30)","v":"2022-07-30"},{"$f":"DATE(YEAR(TODAY())+3,9,28)","v":"2022-09-28"},{"$f":"DATE(YEAR(TODAY())+3,9,14)","v":"2022-09-14"},{"$f":"DATE(YEAR(TODAY())+3,11,13)","v":"2022-11-13"},150,145,{"$f":"DAYS360(DetalizētaInformācijaParProjektu[[#This Row],[PLĀNOTAIS SĀKUMS]],DetalizētaInformācijaParProjektu[[#This Row],[PLĀNOTĀS BEIGAS]],FALSE)","v":58},{"$f":"DAYS360(DetalizētaInformācijaParProjektu[[#This Row],[FAKTISKAIS SĀKUMS]],DetalizētaInformācijaParProjektu[[#This Row],[FAKTISKĀS BEIGAS]],FALSE)","v":59},{"$f":"INDEX(Parametri[],MATCH(DetalizētaInformācijaParProjektu[[#This Row],[PROJEKTA VEIDS]],Parametri[PROJEKTA VEIDS],0),MATCH(DetalizētaInformācijaParProjektu[[#Headers],[KONTA PĀRVALDNIEKS]],Parametri[#Headers],0))*INDEX('PROJEKTA PARAMETRI'!$B$12:$H$12,1,MATCH(DetalizētaInformācijaParProjektu[[#Headers],[KONTA PĀRVALDNIEKS]],Parametri[#Headers],0))*DetalizētaInformācijaParProjektu[[#This Row],[PLĀNOTAIS DARBS]]","v":{"v":5400,"d":"5,400 EUR"}},{"$f":"INDEX(Parametri[],MATCH(DetalizētaInformācijaParProjektu[[#This Row],[PROJEKTA VEIDS]],Parametri[PROJEKTA VEIDS],0),MATCH(DetalizētaInformācijaParProjektu[[#Headers],[PROJEKTA VADĪTĀJS]],Parametri[#Headers],0))*INDEX('PROJEKTA PARAMETRI'!$B$12:$H$12,1,MATCH(DetalizētaInformācijaParProjektu[[#Headers],[PROJEKTA VADĪTĀJS]],Parametri[#Headers],0))*DetalizētaInformācijaParProjektu[[#This Row],[PLĀNOTAIS DARBS]]","v":{"v":10800,"d":"10,800 EUR"}},{"$f":"INDEX(Parametri[],MATCH(DetalizētaInformācijaParProjektu[[#This Row],[PROJEKTA VEIDS]],Parametri[PROJEKTA VEIDS],0),MATCH(DetalizētaInformācijaParProjektu[[#Headers],[STRATĒĢIJAS VADĪTĀJS]],Parametri[#Headers],0))*INDEX('PROJEKTA PARAMETRI'!$B$12:$H$12,1,MATCH(DetalizētaInformācijaParProjektu[[#Headers],[STRATĒĢIJAS VADĪTĀJS]],Parametri[#Headers],0))*DetalizētaInformācijaParProjektu[[#This Row],[PLĀNOTAIS DARBS]]","v":{"v":0,"d":"0 EUR"}},{"$f":"INDEX(Parametri[],MATCH(DetalizētaInformācijaParProjektu[[#This Row],[PROJEKTA VEIDS]],Parametri[PROJEKTA VEIDS],0),MATCH(DetalizētaInformācijaParProjektu[[#Headers],[NOFORMĒJUMA SPECIĀLISTS]],Parametri[#Headers],0))*INDEX('PROJEKTA PARAMETRI'!$B$12:$H$12,1,MATCH(DetalizētaInformācijaParProjektu[[#Headers],[NOFORMĒJUMA SPECIĀLISTS]],Parametri[#Headers],0))*DetalizētaInformācijaParProjektu[[#This Row],[PLĀNOTAIS DARBS]]","v":{"v":0,"d":"0 EUR"}},{"$f":"INDEX(Parametri[],MATCH(DetalizētaInformācijaParProjektu[[#This Row],[PROJEKTA VEIDS]],Parametri[PROJEKTA VEIDS],0),MATCH(DetalizētaInformācijaParProjektu[[#Headers],[PASĀKUMA PERSONĀLS]],Parametri[#Headers],0))*INDEX('PROJEKTA PARAMETRI'!$B$12:$H$12,1,MATCH(DetalizētaInformācijaParProjektu[[#Headers],[PASĀKUMA PERSONĀLS]],Parametri[#Headers],0))*DetalizētaInformācijaParProjektu[[#This Row],[PLĀNOTAIS DARBS]]","v":{"v":1200,"d":"1,200 EUR"}},{"$f":"INDEX(Parametri[],MATCH(DetalizētaInformācijaParProjektu[[#This Row],[PROJEKTA VEIDS]],Parametri[PROJEKTA VEIDS],0),MATCH(DetalizētaInformācijaParProjektu[[#Headers],[ADMINISTRATĪVIE DARBINIEKI]],Parametri[#Headers],0))*INDEX('PROJEKTA PARAMETRI'!$B$12:$H$12,1,MATCH(DetalizētaInformācijaParProjektu[[#Headers],[ADMINISTRATĪVIE DARBINIEKI]],Parametri[#Headers],0))*DetalizētaInformācijaParProjektu[[#This Row],[PLĀNOTAIS DARBS]]","v":{"v":900,"d":"900 EUR"}},{"$f":"INDEX(Parametri[],MATCH(DetalizētaInformācijaParProjektu[[#This Row],[PROJEKTA VEIDS]],Parametri[PROJEKTA VEIDS],0),MATCH(DetalizētaInformācijaParProjektu[[#Headers],[KONTA PĀRVALDNIEKS]],Parametri[#Headers],0))*INDEX('PROJEKTA PARAMETRI'!$B$12:$H$12,1,MATCH(DetalizētaInformācijaParProjektu[[#Headers],[KONTA PĀRVALDNIEKS]],Parametri[#Headers],0))*DetalizētaInformācijaParProjektu[[#This Row],[FAKTISKAIS DARBS]]","v":{"v":5220,"d":"5,220 EUR"}},{"$f":"INDEX(Parametri[],MATCH(DetalizētaInformācijaParProjektu[[#This Row],[PROJEKTA VEIDS]],Parametri[PROJEKTA VEIDS],0),MATCH(DetalizētaInformācijaParProjektu[[#Headers],[PROJEKTA VADĪTĀJS]],Parametri[#Headers],0))*INDEX('PROJEKTA PARAMETRI'!$B$12:$H$12,1,MATCH(DetalizētaInformācijaParProjektu[[#Headers],[PROJEKTA VADĪTĀJS]],Parametri[#Headers],0))*DetalizētaInformācijaParProjektu[[#This Row],[FAKTISKAIS DARBS]]","v":{"v":10440,"d":"10,440 EUR"}},{"$f":"INDEX(Parametri[],MATCH(DetalizētaInformācijaParProjektu[[#This Row],[PROJEKTA VEIDS]],Parametri[PROJEKTA VEIDS],0),MATCH(DetalizētaInformācijaParProjektu[[#Headers],[STRATĒĢIJAS VADĪTĀJS]],Parametri[#Headers],0))*INDEX('PROJEKTA PARAMETRI'!$B$12:$H$12,1,MATCH(DetalizētaInformācijaParProjektu[[#Headers],[STRATĒĢIJAS VADĪTĀJS]],Parametri[#Headers],0))*DetalizētaInformācijaParProjektu[[#This Row],[FAKTISKAIS DARBS]]","v":{"v":0,"d":"0 EUR"}},{"$f":"INDEX(Parametri[],MATCH(DetalizētaInformācijaParProjektu[[#This Row],[PROJEKTA VEIDS]],Parametri[PROJEKTA VEIDS],0),MATCH(DetalizētaInformācijaParProjektu[[#Headers],[NOFORMĒJUMA SPECIĀLISTS]],Parametri[#Headers],0))*INDEX('PROJEKTA PARAMETRI'!$B$12:$H$12,1,MATCH(DetalizētaInformācijaParProjektu[[#Headers],[NOFORMĒJUMA SPECIĀLISTS]],Parametri[#Headers],0))*DetalizētaInformācijaParProjektu[[#This Row],[FAKTISKAIS DARBS]]","v":{"v":0,"d":"0 EUR"}},{"$f":"INDEX(Parametri[],MATCH(DetalizētaInformācijaParProjektu[[#This Row],[PROJEKTA VEIDS]],Parametri[PROJEKTA VEIDS],0),MATCH(DetalizētaInformācijaParProjektu[[#Headers],[PASĀKUMA PERSONĀLS]],Parametri[#Headers],0))*INDEX('PROJEKTA PARAMETRI'!$B$12:$H$12,1,MATCH(DetalizētaInformācijaParProjektu[[#Headers],[PASĀKUMA PERSONĀLS]],Parametri[#Headers],0))*DetalizētaInformācijaParProjektu[[#This Row],[FAKTISKAIS DARBS]]","v":{"v":1160,"d":"1,160 EUR"}},{"$f":"INDEX(Parametri[],MATCH(DetalizētaInformācijaParProjektu[[#This Row],[PROJEKTA VEIDS]],Parametri[PROJEKTA VEIDS],0),MATCH(DetalizētaInformācijaParProjektu[[#Headers],[ADMINISTRATĪVIE DARBINIEKI]],Parametri[#Headers],0))*INDEX('PROJEKTA PARAMETRI'!$B$12:$H$12,1,MATCH(DetalizētaInformācijaParProjektu[[#Headers],[ADMINISTRATĪVIE DARBINIEKI]],Parametri[#Headers],0))*DetalizētaInformācijaParProjektu[[#This Row],[FAKTISKAIS DARBS]]","v":{"v":870,"d":"870 EUR"}}]
[null,"5. projekts","Pasākuma personāls",{"$f":"DATE(YEAR(TODAY())+4,8,11)","v":"2023-08-11"},{"$f":"DATE(YEAR(TODAY())+4,8,21)","v":"2023-08-21"},{"$f":"DATE(YEAR(TODAY())+4,9,14)","v":"2023-09-14"},{"$f":"DATE(YEAR(TODAY())+4,9,25)","v":"2023-09-25"},250,255,{"$f":"DAYS360(DetalizētaInformācijaParProjektu[[#This Row],[PLĀNOTAIS SĀKUMS]],DetalizētaInformācijaParProjektu[[#This Row],[PLĀNOTĀS BEIGAS]],FALSE)","v":10},{"$f":"DAYS360(DetalizētaInformācijaParProjektu[[#This Row],[FAKTISKAIS SĀKUMS]],DetalizētaInformācijaParProjektu[[#This Row],[FAKTISKĀS BEIGAS]],FALSE)","v":11},{"$f":"INDEX(Parametri[],MATCH(DetalizētaInformācijaParProjektu[[#This Row],[PROJEKTA VEIDS]],Parametri[PROJEKTA VEIDS],0),MATCH(DetalizētaInformācijaParProjektu[[#Headers],[KONTA PĀRVALDNIEKS]],Parametri[#Headers],0))*INDEX('PROJEKTA PARAMETRI'!$B$12:$H$12,1,MATCH(DetalizētaInformācijaParProjektu[[#Headers],[KONTA PĀRVALDNIEKS]],Parametri[#Headers],0))*DetalizētaInformācijaParProjektu[[#This Row],[PLĀNOTAIS DARBS]]","v":{"v":9000,"d":"9,000 EUR"}},{"$f":"INDEX(Parametri[],MATCH(DetalizētaInformācijaParProjektu[[#This Row],[PROJEKTA VEIDS]],Parametri[PROJEKTA VEIDS],0),MATCH(DetalizētaInformācijaParProjektu[[#Headers],[PROJEKTA VADĪTĀJS]],Parametri[#Headers],0))*INDEX('PROJEKTA PARAMETRI'!$B$12:$H$12,1,MATCH(DetalizētaInformācijaParProjektu[[#Headers],[PROJEKTA VADĪTĀJS]],Parametri[#Headers],0))*DetalizētaInformācijaParProjektu[[#This Row],[PLĀNOTAIS DARBS]]","v":{"v":3000,"d":"3,000 EUR"}},{"$f":"INDEX(Parametri[],MATCH(DetalizētaInformācijaParProjektu[[#This Row],[PROJEKTA VEIDS]],Parametri[PROJEKTA VEIDS],0),MATCH(DetalizētaInformācijaParProjektu[[#Headers],[STRATĒĢIJAS VADĪTĀJS]],Parametri[#Headers],0))*INDEX('PROJEKTA PARAMETRI'!$B$12:$H$12,1,MATCH(DetalizētaInformācijaParProjektu[[#Headers],[STRATĒĢIJAS VADĪTĀJS]],Parametri[#Headers],0))*DetalizētaInformācijaParProjektu[[#This Row],[PLĀNOTAIS DARBS]]","v":{"v":0,"d":"0 EUR"}},{"$f":"INDEX(Parametri[],MATCH(DetalizētaInformācijaParProjektu[[#This Row],[PROJEKTA VEIDS]],Parametri[PROJEKTA VEIDS],0),MATCH(DetalizētaInformācijaParProjektu[[#Headers],[NOFORMĒJUMA SPECIĀLISTS]],Parametri[#Headers],0))*INDEX('PROJEKTA PARAMETRI'!$B$12:$H$12,1,MATCH(DetalizētaInformācijaParProjektu[[#Headers],[NOFORMĒJUMA SPECIĀLISTS]],Parametri[#Headers],0))*DetalizētaInformācijaParProjektu[[#This Row],[PLĀNOTAIS DARBS]]","v":{"v":0,"d":"0 EUR"}},{"$f":"INDEX(Parametri[],MATCH(DetalizētaInformācijaParProjektu[[#This Row],[PROJEKTA VEIDS]],Parametri[PROJEKTA VEIDS],0),MATCH(DetalizētaInformācijaParProjektu[[#Headers],[PASĀKUMA PERSONĀLS]],Parametri[#Headers],0))*INDEX('PROJEKTA PARAMETRI'!$B$12:$H$12,1,MATCH(DetalizētaInformācijaParProjektu[[#Headers],[PASĀKUMA PERSONĀLS]],Parametri[#Headers],0))*DetalizētaInformācijaParProjektu[[#This Row],[PLĀNOTAIS DARBS]]","v":{"v":12000,"d":"12,000 EUR"}},{"$f":"INDEX(Parametri[],MATCH(DetalizētaInformācijaParProjektu[[#This Row],[PROJEKTA VEIDS]],Parametri[PROJEKTA VEIDS],0),MATCH(DetalizētaInformācijaParProjektu[[#Headers],[ADMINISTRATĪVIE DARBINIEKI]],Parametri[#Headers],0))*INDEX('PROJEKTA PARAMETRI'!$B$12:$H$12,1,MATCH(DetalizētaInformācijaParProjektu[[#Headers],[ADMINISTRATĪVIE DARBINIEKI]],Parametri[#Headers],0))*DetalizētaInformācijaParProjektu[[#This Row],[PLĀNOTAIS DARBS]]","v":{"v":1500,"d":"1,500 EUR"}},{"$f":"INDEX(Parametri[],MATCH(DetalizētaInformācijaParProjektu[[#This Row],[PROJEKTA VEIDS]],Parametri[PROJEKTA VEIDS],0),MATCH(DetalizētaInformācijaParProjektu[[#Headers],[KONTA PĀRVALDNIEKS]],Parametri[#Headers],0))*INDEX('PROJEKTA PARAMETRI'!$B$12:$H$12,1,MATCH(DetalizētaInformācijaParProjektu[[#Headers],[KONTA PĀRVALDNIEKS]],Parametri[#Headers],0))*DetalizētaInformācijaParProjektu[[#This Row],[FAKTISKAIS DARBS]]","v":{"v":9180,"d":"9,180 EUR"}},{"$f":"INDEX(Parametri[],MATCH(DetalizētaInformācijaParProjektu[[#This Row],[PROJEKTA VEIDS]],Parametri[PROJEKTA VEIDS],0),MATCH(DetalizētaInformācijaParProjektu[[#Headers],[PROJEKTA VADĪTĀJS]],Parametri[#Headers],0))*INDEX('PROJEKTA PARAMETRI'!$B$12:$H$12,1,MATCH(DetalizētaInformācijaParProjektu[[#Headers],[PROJEKTA VADĪTĀJS]],Parametri[#Headers],0))*DetalizētaInformācijaParProjektu[[#This Row],[FAKTISKAIS DARBS]]","v":{"v":3060,"d":"3,060 EUR"}},{"$f":"INDEX(Parametri[],MATCH(DetalizētaInformācijaParProjektu[[#This Row],[PROJEKTA VEIDS]],Parametri[PROJEKTA VEIDS],0),MATCH(DetalizētaInformācijaParProjektu[[#Headers],[STRATĒĢIJAS VADĪTĀJS]],Parametri[#Headers],0))*INDEX('PROJEKTA PARAMETRI'!$B$12:$H$12,1,MATCH(DetalizētaInformācijaParProjektu[[#Headers],[STRATĒĢIJAS VADĪTĀJS]],Parametri[#Headers],0))*DetalizētaInformācijaParProjektu[[#This Row],[FAKTISKAIS DARBS]]","v":{"v":0,"d":"0 EUR"}},{"$f":"INDEX(Parametri[],MATCH(DetalizētaInformācijaParProjektu[[#This Row],[PROJEKTA VEIDS]],Parametri[PROJEKTA VEIDS],0),MATCH(DetalizētaInformācijaParProjektu[[#Headers],[NOFORMĒJUMA SPECIĀLISTS]],Parametri[#Headers],0))*INDEX('PROJEKTA PARAMETRI'!$B$12:$H$12,1,MATCH(DetalizētaInformācijaParProjektu[[#Headers],[NOFORMĒJUMA SPECIĀLISTS]],Parametri[#Headers],0))*DetalizētaInformācijaParProjektu[[#This Row],[FAKTISKAIS DARBS]]","v":{"v":0,"d":"0 EUR"}},{"$f":"INDEX(Parametri[],MATCH(DetalizētaInformācijaParProjektu[[#This Row],[PROJEKTA VEIDS]],Parametri[PROJEKTA VEIDS],0),MATCH(DetalizētaInformācijaParProjektu[[#Headers],[PASĀKUMA PERSONĀLS]],Parametri[#Headers],0))*INDEX('PROJEKTA PARAMETRI'!$B$12:$H$12,1,MATCH(DetalizētaInformācijaParProjektu[[#Headers],[PASĀKUMA PERSONĀLS]],Parametri[#Headers],0))*DetalizētaInformācijaParProjektu[[#This Row],[FAKTISKAIS DARBS]]","v":{"v":12240,"d":"12,240 EUR"}},{"$f":"INDEX(Parametri[],MATCH(DetalizētaInformācijaParProjektu[[#This Row],[PROJEKTA VEIDS]],Parametri[PROJEKTA VEIDS],0),MATCH(DetalizētaInformācijaParProjektu[[#Headers],[ADMINISTRATĪVIE DARBINIEKI]],Parametri[#Headers],0))*INDEX('PROJEKTA PARAMETRI'!$B$12:$H$12,1,MATCH(DetalizētaInformācijaParProjektu[[#Headers],[ADMINISTRATĪVIE DARBINIEKI]],Parametri[#Headers],0))*DetalizētaInformācijaParProjektu[[#This Row],[FAKTISKAIS DARBS]]","v":{"v":1530,"d":"1,530 EUR"}}]
[null,"Kopsumma",{"$nulls":5},{"$f":"SUBTOTAL(109,DetalizētaInformācijaParProjektu[PLĀNOTAIS DARBS])","v":1500},{"$f":"SUBTOTAL(109,DetalizētaInformācijaParProjektu[FAKTISKAIS DARBS])","v":1510},{"$f":"SUBTOTAL(109,DetalizētaInformācijaParProjektu[PLĀNOTAIS ILGUMS])","v":225},{"$f":"SUBTOTAL(109,DetalizētaInformācijaParProjektu[FAKTISKAIS ILGUMS])","v":597}]

{"sheet":"PROJEKTA KOPSUMMAS","index":3,"n_rows":10,"n_cols":14,"rows_kept":10}
["Šajā darblapā iegūstiet projekta kopsummas. Šūnā pa labi tiek automātiski atjaunināts uzņēmuma nosaukums Šīs kolonnas šūnās ir noderīgi norādījumi. Bultiņa uz leju, lai sāktu darbu.",{"$f":"'PROJEKTA PARAMETRI'!B1","v":"Uzņēmuma nosaukums"}]
["Šīs darblapas nosaukums ir šūnā pa labi.","Pasākuma vadības projekta žurnāls"]
["Konfidencialitātes ziņojums ir šūnā pa labi.",{"$f":"'PROJEKTA PARAMETRI'!B3","v":"Uzņēmuma nosaukums , konfidenciāli"}]
["Rakurstabula, kas sākas šūnā pa labi, tiek automātiski atjaunināta.\nINFORMĀCIJA\nLai atsvaidzinātu rakurstabulu labajā pusē, atlasiet to (jebkuru šūnu rakurstabulā), lentes cilnē RAKURSTABULU RĪKI | ANALĪZE atlasiet Atsvaidzināt vai nospiediet taustiņu kombināciju SHIFT+F10 jebkurā rakurstabulas šūnā un pēc tam atlasiet Atsvaidzināt.","PROJEKTA NOSAUKUMS","KONTA PĀRVALDNIEKA PLĀNOTAIS","PROJEKTU VADĪTĀJA PLĀNOTAIS","STRATĒĢIJAS VADĪTĀJA PLĀNOTAIS","NOFORMĒJUMA SPECIĀLISTA PLĀNOTAIS","PASĀKUMA PERSONĀLA PLĀNOTAIS","ADMINISTRATĪVO DARBINIEKU PLĀNOTAIS","KONTA PĀRVALDNIEKA FAKTISKAIS","PROJEKTU VADĪTĀJA FAKTISKAIS","STRATĒĢIJAS VADĪTĀJA FAKTISKAIS","NOFORMĒJUMA SPECIĀLISTA FAKTISKAIS","PASĀKUMA PERSONĀLA FAKTISKAIS","ADMINISTRATĪVO DARBINIEKU FAKTISKAIS"]
[null,"1. projekts",{"v":7200,"d":"7,200.00 EUR"},{"v":2400,"d":"2,400.00 EUR"},{"v":18000,"d":"18,000.00 EUR"},{"v":0,"d":"0.00 EUR"},{"v":0,"d":"0.00 EUR"},{"v":1200,"d":"1,200.00 EUR"},{"v":7920,"d":"7,920.00 EUR"},{"v":2640,"d":"2,640.00 EUR"},{"v":19800,"d":"19,800.00 EUR"},{"v":0,"d":"0.00 EUR"},{"v":0,"d":"0.00 EUR"},{"v":1320,"d":"1,320.00 EUR"}]
[null,"2. projekts",{"v":14400,"d":"14,400.00 EUR"},{"v":24000,"d":"24,000.00 EUR"},{"v":6000,"d":"6,000.00 EUR"},{"v":4000,"d":"4,000.00 EUR"},{"v":0,"d":"0.00 EUR"},{"v":2400,"d":"2,400.00 EUR"},{"v":14040,"d":"14,040.00 EUR"},{"v":23400,"d":"23,400.00 EUR"},{"v":5850,"d":"5,850.00 EUR"},{"v":3900,"d":"3,900.00 EUR"},{"v":0,"d":"0.00 EUR"},{"v":2340,"d":"2,340.00 EUR"}]
[null,"3. projekts",{"v":18000,"d":"18,000.00 EUR"},{"v":12000,"d":"12,000.00 EUR"},{"v":0,"d":"0.00 EUR"},{"v":25000,"d":"25,000.00 EUR"},{"v":0,"d":"0.00 EUR"},{"v":3000,"d":"3,000.00 EUR"},{"v":18000,"d":"18,000.00 EUR"},{"v":12000,"d":"12,000.00 EUR"},{"v":0,"d":"0.00 EUR"},{"v":25000,"d":"25,000.00 EUR"},{"v":0,"d":"0.00 EUR"},{"v":3000,"d":"3,000.00 EUR"}]
[null,"4. projekts",{"v":5400,"d":"5,400.00 EUR"},{"v":10800,"d":"10,800.00 EUR"},{"v":0,"d":"0.00 EUR"},{"v":0,"d":"0.00 EUR"},{"v":1200,"d":"1,200.00 EUR"},{"v":900,"d":"900.00 EUR"},{"v":5220,"d":"5,220.00 EUR"},{"v":10440,"d":"10,440.00 EUR"},{"v":0,"d":"0.00 EUR"},{"v":0,"d":"0.00 EUR"},{"v":1160,"d":"1,160.00 EUR"},{"v":870,"d":"870.00 EUR"}]
[null,"5. projekts",{"v":9000,"d":"9,000.00 EUR"},{"v":3000,"d":"3,000.00 EUR"},{"v":0,"d":"0.00 EUR"},{"v":0,"d":"0.00 EUR"},{"v":12000,"d":"12,000.00 EUR"},{"v":1500,"d":"1,500.00 EUR"},{"v":9180,"d":"9,180.00 EUR"},{"v":3060,"d":"3,060.00 EUR"},{"v":0,"d":"0.00 EUR"},{"v":0,"d":"0.00 EUR"},{"v":12240,"d":"12,240.00 EUR"},{"v":1530,"d":"1,530.00 EUR"}]
[null,"Gala summa",{"v":54000,"d":"54,000.00 EUR"},{"v":52200,"d":"52,200.00 EUR"},{"v":24000,"d":"24,000.00 EUR"},{"v":29000,"d":"29,000.00 EUR"},{"v":13200,"d":"13,200.00 EUR"},{"v":9000,"d":"9,000.00 EUR"},{"v":54360,"d":"54,360.00 EUR"},{"v":51540,"d":"51,540.00 EUR"},{"v":25650,"d":"25,650.00 EUR"},{"v":28900,"d":"28,900.00 EUR"},{"v":13400,"d":"13,400.00 EUR"},{"v":9060,"d":"9,060.00 EUR"}]